{"text_format":"1","workbook":"xlsx","n_sheets":10,"sheets":["取込対象コード","年度指定&ファイル取り込み","ＦＢ","Linedata","company comment","前年比較","database","B設問結果","回答結果一覧","FB用database(非表示)"],"not_rendered":{"charts":4,"images":1,"macros":1,"external_links":0,"defined_names":3,"comments":0,"pivot_tables":0},"unopened":[],"bounds":{"document_bytes":16777216,"sheet_cells":100000,"rows_first":2000,"rows_last":500,"rows_between":2000,"halvings":0,"cell_chars":16384,"cell_head_chars":4096},"cells_cut":0,"cells_raw":0,"read":"whole","date_system":"1900"}

{"sheet":"取込対象コード","index":0,"n_rows":2,"n_cols":1,"rows_kept":2,"cut":false,"hidden":false,"merged":[]}
[]
["company code"]

{"sheet":"年度指定&ファイル取り込み","index":1,"n_rows":12,"n_cols":7,"rows_kept":12,"cut":false,"hidden":false,"merged":[]}
[]
[]
[null,"yy形式で入力"]
[null,null,"年度",null,null,null,"保管フォルダに置かれたファイルを全て取込"]
[null,null,null,null,null,null,"年度に対応した「回答結果一覧」「database」シートを作成し、「FB」シートを更新"]
[]
[]
[]
[]
[]
[]
[null,null,null,null,null,null,"年度に対応した「回答結果一覧」「database」シートを元に、「FB」シートを更新"]

{"sheet":"ＦＢ","index":2,"n_rows":127,"n_cols":17,"rows_kept":127,"cut":false,"hidden":false,"merged":[[1,0,1,7],[6,14,6,15],[7,14,7,15],[8,14,8,15],[19,14,19,15],[3,3,3,11],[14,14,14,15],[15,14,15,15],[16,14,16,15],[17,14,17,15],[18,14,18,15],[9,14,9,15],[10,14,10,15],[11,14,11,15],[12,14,12,15],[13,14,13,15]]}
[null,null,null,null,null,null,null,null,null,null,null,null,null,null,null,null,"1/2"]
[" 仕入先殿　化学物質管理自主評価結果まとめ"]
[]
[null,"company code",null,{"$f":"VLOOKUP(C4,'FB用database(非表示)'!A:B,2,FALSE)","v":{"$error":"#N/A"}}]
[]
[]
["[ご参考]XX年度自主点検の事前確認項目A/B/C主要なものについての御社ご回答です。",null,null,null,null,null,null,null,null,null,null,null,null,"御社回答","具体例"]
[null,"C1　現在製品中の製品に対し、部品または材料を納入している",null,null,null,null,null,null,null,null,null,null,null,{"$f":"VLOOKUP(C4,INDIRECT(D27&\"!A:AB\"),3,FALSE)","v":{"$error":"#REF!"}},{"$f":"IF(N8,VLOOKUP(C4,INDIRECT(D27&\"!A:AB\"),16,FALSE)&\"\",\"\")","v":{"$error":"#REF!"}}]
[null,"C2　旧型補給用（量産終了後）の部品、材料を納入している",null,null,null,null,null,null,null,null,null,null,null,{"$f":"VLOOKUP(C4,INDIRECT(D27&\"!A:AB\"),4,FALSE)","v":{"$error":"#REF!"}},{"$f":"IF(N9,VLOOKUP(C4,INDIRECT(D27&\"!A:AB\"),17,FALSE)&\"\",\"\")","v":{"$error":"#REF!"}}]
[null,"C3　試作部品を納入している",null,null,null,null,null,null,null,null,null,null,null,{"$f":"VLOOKUP(C4,INDIRECT(D27&\"!A:AB\"),5,FALSE)","v":{"$error":"#REF!"}},{"$f":"IF(N10,VLOOKUP(C4,INDIRECT(D27&\"!A:AB\"),18,FALSE)&\"\",\"\")","v":{"$error":"#REF!"}}]
[null,"C4　工場設備や工場副資材を納入している",null,null,null,null,null,null,null,null,null,null,null,{"$f":"VLOOKUP(C4,INDIRECT(D27&\"!A:AB\"),6,FALSE)","v":{"$error":"#REF!"}},{"$f":"IF(N11,VLOOKUP(C4,INDIRECT(D27&\"!A:AB\"),19,FALSE)&\"\",\"\")","v":{"$error":"#REF!"}}]
[null,"C5　部品・材料の製造、納入は行っているが、対応する設計・開発は行っていない",null,null,null,null,null,null,null,null,null,null,null,{"$f":"VLOOKUP(C4,INDIRECT(D27&\"!A:AB\"),7,FALSE)","v":{"$error":"#REF!"}},{"$f":"IF(N12,VLOOKUP(C4,INDIRECT(D27&\"!A:AB\"),20,FALSE)&\"\",\"\")","v":{"$error":"#REF!"}}]
[null,"C6　実際の部品・材料の製造は行わず、商社・代理店として納入している",null,null,null,null,null,null,null,null,null,null,null,{"$f":"VLOOKUP(C4,INDIRECT(D27&\"!A:AB\"),8,FALSE)","v":{"$error":"#REF!"}},{"$f":"IF(N13,VLOOKUP(C4,INDIRECT(D27&\"!A:AB\"),21,FALSE)&\"\",\"\")","v":{"$error":"#REF!"}}]
[null,"C7　自社製造工程中にガイドライン表4.1に示す、変換工程（化学品から部品・製品を製造する工程）がある",null,null,null,null,null,null,null,null,null,null,null,{"$f":"VLOOKUP(C4,INDIRECT(D27&\"!A:AB\"),9,FALSE)","v":{"$error":"#REF!"}},{"$f":"IF(N14,VLOOKUP(C4,INDIRECT(D27&\"!A:AB\"),22,FALSE)&\"\",\"\")","v":{"$error":"#REF!"}}]
[null,"C8　子会社・海外子会社がありますか？",null,null,null,null,null,null,null,null,null,null,null,{"$f":"VLOOKUP(C4,INDIRECT(D27&\"!A:AB\"),10,FALSE)","v":{"$error":"#REF!"}},{"$f":"IF(N15,VLOOKUP(C4,INDIRECT(D27&\"!A:AB\"),23,FALSE)&\"\",\"\")","v":{"$error":"#REF!"}}]
[null,"C9　業界標準の製品含有物質情報伝達ツール（IMDS・JAMAシート・JAPIAシート・AISシート・chemSHELPA等）を使用していますか？",null,null,null,null,null,null,null,null,null,null,null,{"$f":"VLOOKUP(C4,INDIRECT(D27&\"!A:AB\"),11,FALSE)","v":{"$error":"#REF!"}},{"$f":"IF(N16,VLOOKUP(C4,INDIRECT(D27&\"!A:AB\"),24,FALSE)&\"\",\"\")","v":{"$error":"#REF!"}}]
[null,"C10　各ツールにおける管理基準（GADSLなど）の最新版を適用していますか？",null,null,null,null,null,null,null,null,null,null,null,{"$f":"VLOOKUP(C4,INDIRECT(D27&\"!A:AB\"),12,FALSE)","v":{"$error":"#REF!"}},{"$f":"IF(N17,VLOOKUP(C4,INDIRECT(D27&\"!A:AB\"),25,FALSE)&\"\",\"\")","v":{"$error":"#REF!"}}]
[null,"C11　顧客管理基準の最新版(ない場合は最新のGADSL)を使用していますか？",null,null,null,null,null,null,null,null,null,null,null,{"$f":"VLOOKUP(C4,INDIRECT(D27&\"!A:AB\"),13,FALSE)","v":{"$error":"#REF!"}},{"$f":"IF(N18,VLOOKUP(C4,INDIRECT(D27&\"!A:AB\"),26,FALSE)&\"\",\"\")","v":{"$error":"#REF!"}}]
[null,"C12　顧客設定のIMDSマニュアル(ない場合はIMDSトレーニングマニュアル)の最新版を参照していますか?",null,null,null,null,null,null,null,null,null,null,null,{"$f":"VLOOKUP(C4,INDIRECT(D27&\"!A:AB\"),14,FALSE)","v":{"$error":"#REF!"}},{"$f":"IF(N19,VLOOKUP(C4,INDIRECT(D27&\"!A:AB\"),27,FALSE)&\"\",\"\")","v":{"$error":"#REF!"}}]
[null,"C13　資本金3億円以下、または従業員数が300人以下である",null,null,null,null,null,null,null,null,null,null,null,{"$f":"VLOOKUP(C4,INDIRECT(D27&\"!A:AB\"),15,FALSE)","v":{"$error":"#REF!"}},{"$f":"IF(N20,VLOOKUP(C4,INDIRECT(D27&\"!A:AB\"),28,FALSE)&\"\",\"\")","v":{"$error":"#REF!"}}]
[]
["１）総合点数"]
[]
[]
[]
[]
[null,null,null,{"$f":"'年度指定&ファイル取り込み'!B4 & \"_B設問結果\"","v":"_B設問結果"},null,null,null,{"$f":"'年度指定&ファイル取り込み'!B4-2 & \"_結果\"","v":"-2_結果"}]
[null,null,null,null,null,null,"X","Y"]
[null,null,null,null,null,null,{"$f":"VLOOKUP(C4,INDIRECT('年度指定&ファイル取り込み'!B4-2 & \"_database\"&\"!A:E\"),3,FALSE)","v":{"$error":"#REF!"}},{"$f":"VLOOKUP(C4,INDIRECT('年度指定&ファイル取り込み'!B4-2 & \"_database\"&\"!A:E\"),5,FALSE)","v":{"$error":"#REF!"}}]
[]
[]
[null,null,null,null,null,null,null,{"$f":"'年度指定&ファイル取り込み'!B4-1 & \"_結果\"","v":"-1_結果"}]
[null,null,null,null,null,null,"X","Y"]
[null,null,null,null,null,null,{"$f":"VLOOKUP(C4,INDIRECT('年度指定&ファイル取り込み'!B4-1 & \"_database\"&\"!A:E\"),3,FALSE)","v":{"$error":"#REF!"}},{"$f":"VLOOKUP(C4,INDIRECT('年度指定&ファイル取り込み'!B4-1 & \"_database\"&\"!A:E\"),5,FALSE)","v":{"$error":"#REF!"}}]
[]
[]
[null,null,null,null,null,null,null,{"$f":"'年度指定&ファイル取り込み'!B4 & \"_結果\"","v":"_結果"}]
[null,null,null,null,null,null,"X","Y"]
[null,null,null,null,null,null,{"$f":"VLOOKUP(C4,INDIRECT('年度指定&ファイル取り込み'!B4 & \"_database\"&\"!A:E\"),3,FALSE)","v":{"$error":"#REF!"}},{"$f":"VLOOKUP(C4,INDIRECT('年度指定&ファイル取り込み'!B4 & \"_database\"&\"!A:E\"),5,FALSE)","v":{"$error":"#REF!"}}]
[]
[]
[]
["２）各項目別の有無と実施状況"]
[]
[]
[]
[]
[]
[]
[]
[]
[null,null,"組織の状況とマネジメントシステム","基本方針・管理体制","製品含有化学物質管理の遂行","製品含有化学物質管理業務運営","化学物質情報・データ管理及び適合確認業務運営","人的資源および文書・情報の管理"]
[null,{"$f":"C4","v":0},{"$f":"VLOOKUP(B53,INDIRECT('年度指定&ファイル取り込み'!B4 & \"_database\"&\"!A:W\"),7,FALSE)","v":{"$error":"#REF!"}},{"$f":"VLOOKUP(B53,INDIRECT('年度指定&ファイル取り込み'!B4 & \"_database\"&\"!A:W\"),8,FALSE)","v":{"$error":"#REF!"}},{"$f":"VLOOKUP(B53,INDIRECT('年度指定&ファイル取り込み'!B4 & \"_database\"&\"!A:W\"),9,FALSE)","v":{"$error":"#REF!"}},{"$f":"VLOOKUP(B53,INDIRECT('年度指定&ファイル取り込み'!B4 & \"_database\"&\"!A:W\"),10,FALSE)","v":{"$error":"#REF!"}},{"$f":"VLOOKUP(B53,INDIRECT('年度指定&ファイル取り込み'!B4 & \"_database\"&\"!A:W\"),11,FALSE)","v":{"$error":"#REF!"}},{"$f":"VLOOKUP(B53,INDIRECT('年度指定&ファイル取り込み'!B4 & \"_database\"&\"!A:W\"),12,FALSE)","v":{"$error":"#REF!"}}]
[]
[]
[]
[]
[]
[]
[]
[]
[]
[]
["3) 各項目別の有無と実施状況(仕組み構築レベル)",null,null,null,null,null,null,null,null,null,null,null,null,null,null,null,"2/2"]
[]
[]
[]
[]
[]
[]
[]
[]
[]
[null,null,"1_組織の状態とマネジメントシステム","2_基本方針・管理体制","3_製品含有化学物質管理の遂行","4_製品含有化学物質管理業務運営","5_化学物質情報・データ管理及び適合確認業務運営","6_人的資源および文書・情報の管理"]
[null,{"$f":"C4","v":0},{"$f":"VLOOKUP(B53,INDIRECT('年度指定&ファイル取り込み'!B4 & \"_database\"&\"!A:X\"),7,FALSE)","v":{"$error":"#REF!"}},{"$f":"VLOOKUP(B53,INDIRECT('年度指定&ファイル取り込み'!B4 & \"_database\"&\"!A:X\"),8,FALSE)","v":{"$error":"#REF!"}},{"$f":"VLOOKUP(B53,INDIRECT('年度指定&ファイル取り込み'!B4 & \"_database\"&\"!A:X\"),9,FALSE)","v":{"$error":"#REF!"}},{"$f":"VLOOKUP(B53,INDIRECT('年度指定&ファイル取り込み'!B4 & \"_database\"&\"!A:X\"),10,FALSE)","v":{"$error":"#REF!"}},{"$f":"VLOOKUP(B53,INDIRECT('年度指定&ファイル取り込み'!B4 & \"_database\"&\"!A:X\"),11,FALSE)","v":{"$error":"#REF!"}},{"$f":"VLOOKUP(B53,INDIRECT('年度指定&ファイル取り込み'!B4 & \"_database\"&\"!A:X\"),12,FALSE)","v":{"$error":"#REF!"}}]
[]
[]
[]
[]
[]
[]
[]
[]
[]
["4) 各項目別の有無と実施状況(実施レベル)"]
[]
[]
[]
[]
[]
[]
[]
[]
[]
[]
[]
[]
[]
[null,null,"1_組織の状態とマネジメントシステム","2_基本方針・管理体制","3_製品含有化学物質管理の遂行","4_製品含有化学物質管理業務運営","5_化学物質情報・データ管理及び適合確認業務運営","6_人的資源および文書・情報の管理"]
[null,{"$f":"C4","v":0},{"$f":"VLOOKUP(B53,INDIRECT('年度指定&ファイル取り込み'!B4 & \"_database\"&\"!A:X\"),19,FALSE)","v":{"$error":"#REF!"}},{"$f":"VLOOKUP(B53,INDIRECT('年度指定&ファイル取り込み'!B4 & \"_database\"&\"!A:X\"),20,FALSE)","v":{"$error":"#REF!"}},{"$f":"VLOOKUP(B53,INDIRECT('年度指定&ファイル取り込み'!B4 & \"_database\"&\"!A:X\"),21,FALSE)","v":{"$error":"#REF!"}},{"$f":"VLOOKUP(B53,INDIRECT('年度指定&ファイル取り込み'!B4 & \"_database\"&\"!A:X\"),22,FALSE)","v":{"$error":"#REF!"}},{"$f":"VLOOKUP(B53,INDIRECT('年度指定&ファイル取り込み'!B4 & \"_database\"&\"!A:X\"),23,FALSE)","v":{"$error":"#REF!"}},{"$f":"VLOOKUP(B53,INDIRECT('年度指定&ファイル取り込み'!B4 & \"_database\"&\"!A:X\"),24,FALSE)","v":{"$error":"#REF!"}}]
[]
[]
[]
[]
[]
["5)comment"]
[]
[null,{"$f":"VLOOKUP('company comment'!G3,'company comment'!G6:I14,2,FALSE)","v":{"$error":"#REF!"}}]
[null,{"$f":"VLOOKUP('company comment'!G3,'company comment'!G6:I14,3,FALSE)","v":{"$error":"#REF!"}}]
[]
[null,{"$f":"'company comment'!B21","v":""}]
[null,{"$f":"'company comment'!B26","v":""}]
[]
[null,{"$f":"前年比較!C6","v":""}]
[null,{"$f":"前年比較!C7","v":""}]
[]
[null,"＊1：1_組織の状態とマネジメントシステム、2：2_基本方針・管理体制、3：3_製品含有化学物質管理の遂行、4：4_製品含有化学物質管理業務運営、"]
[null,"　5：5_化学物質情報・データ管理及び適合確認業務運営　6：6_人的資源および文書・情報の管理"]
[]
[null,"改善のお願いが有る場合は、別途改善計画をお尋ねする場合もございます。その際はご協力をお願いします。"]
[null,"ご意見・ご質問等ございましたら、下記までお問合せ、ご連絡をお願いいたします。"]
[null,"お問合せ、ご連絡頂きました内容は、来年度以降の本活動の参考とさせていただきます。"]
[]
[null,"＜本件に関する問合せ先＞"]
[null,"　　　△△部　□□室　",null,null,null,null,"Tel : 0XXX-XX-XXXX"]
[null,null,"○○○○",null,"E-mail : XXXXXXXXXXXX@XXXX.co.jp"]
[null,null,null,null,null,null,null,null,null,null,null,null,null,null,null,"以  上"]

{"sheet":"Linedata","index":3,"n_rows":5,"n_cols":4,"rows_kept":5,"cut":false,"hidden":true,"merged":[]}
[null,null,"得点"]
[null,"Xの1/3",60,{"$f":"C2","v":60}]
[null,"Xの2/3",90,{"$f":"C3","v":90}]
[null,"Yの1/3",60,60]
[null,"Yの2/3",80,80]

{"sheet":"company comment","index":4,"n_rows":26,"n_cols":9,"rows_kept":26,"cut":false,"hidden":true,"merged":[]}
[]
[null,"company code","X","Y"]
[null,{"$f":"ＦＢ!C4","v":0},{"$f":"ＦＢ!G39","v":{"$error":"#REF!"}},{"$f":"ＦＢ!H39","v":{"$error":"#REF!"}},{"$f":"IF(C3>Linedata!C3,1,IF(C3>Linedata!C2,2,3))","v":{"$error":"#REF!"}},{"$f":"IF(D3>Linedata!C5,\"a\",IF(D3>Linedata!C4,\"b\",\"c\"))","v":{"$error":"#REF!"}},{"$f":"E3&F3","v":{"$error":"#REF!"}}]
[]
[null,null,null,null,null,null,null,"1行目のコメント","2行目のコメント"]
[null,null,null,null,null,null,"1a","仕組み構築レベル、実施レベルともに大変良好です。","他社の模範となるレベルです。貴社の一次二次仕入先の指導をお願いします。"]
[null,null,null,null,null,null,"1b","仕組み構築レベルはできていますが、実施レベルは改善の余地があります。","更なる改善を継続されるとともに、貴社の一次二次仕入先の指導をお願いします。"]
[null,null,null,null,null,null,"1c","仕組み構築レベルはできていますが、実施レベルは改善の必要があります。","改善計画の立案をお願いします。"]
[null,null,null,null,null,null,"2a","仕組み構築レベルは改善の余地がありますが、実施レベルはできています。","更なる改善を継続されるとともに、貴社の一次二次仕入先の指導をお願いします。"]
[null,null,null,null,null,null,"2b","仕組み構築レベル、実施レベルで改善の余地があります。","他社ベンチマーク等をすると共に、レベルアップを目指した改善をしていただくようお願いします。"]
[null,{"$f":"'年度指定&ファイル取り込み'!B4 & \"_database\"","v":"_database"},null,null,null,null,"2c","仕組み構築レベルは改善の余地がありますし、実施レベルで改善の必要があります。","改善計画の立案をお願いします。"]
[{"$f":"'年度指定&ファイル取り込み'!B4-2 & \"年度\"","v":"-2年度"},{"$f":"'年度指定&ファイル取り込み'!B4-2 & \"_database\"","v":"-2_database"},null,null,null,null,"3a","仕組み構築レベルは策定の必要がありますが、実施レベルはうまく機能しています。","他社ベンチマーク等をすると共に、レベルアップを目指した改善をしていただくようお願いします。"]
[null,null,null,null,null,null,"3b","仕組み構築レベルは策定の必要がありますし、実施レベルも改善の余地があります。","速やかな改善計画の立案をお願いします。"]
[null,null,null,null,null,null,"3c","仕組み構築レベルは策定の必要がありますし、実施レベルの改善も必要なレベルです。","早急な改善計画の立案をお願いします。"]
[]
[]
["有無","1_組織の状態とマネジメントシステム","2_基本方針・管理体制","3_製品含有化学物質管理の遂行","4_製品含有化学物質管理業務運営","5_化学物質情報・データ管理及び適合確認業務運営","6_人的資源および文書・情報の管理"]
[null,{"$f":"VLOOKUP(B3,INDIRECT(B11&\"!A:W\"),6,FALSE)","v":{"$error":"#REF!"}},{"$f":"VLOOKUP(B3,INDIRECT(B11&\"!A3:W300\"),7,FALSE)","v":{"$error":"#REF!"}},{"$f":"VLOOKUP(B3,INDIRECT(B11&\"!A3:W300\"),8,FALSE)","v":{"$error":"#REF!"}},{"$f":"VLOOKUP(B3,INDIRECT(B11&\"!A3:W300\"),9,FALSE)","v":{"$error":"#REF!"}},{"$f":"VLOOKUP(B3,INDIRECT(B11&\"!A3:W300\"),10,FALSE)","v":{"$error":"#REF!"}},{"$f":"VLOOKUP(B3,INDIRECT(B11&\"!A3:W300\"),11,FALSE)","v":{"$error":"#REF!"}}]
[{"$f":"IF(B19&C19&D19&E19&F19&G19&B20&C20&D20&E20&F20&G20=\"\",\"\",\"仕組み構築レベル\")","v":{"$error":"#REF!"}},{"$f":"IF(B18/VLOOKUP(B3,INDIRECT(B12&\"!A:W\"),6,FALSE)>1.2,\"1*、\",\"\")","v":{"$error":"#REF!"}},{"$f":"IF(C18/VLOOKUP(B3,INDIRECT(B12&\"!A:W\"),7,FALSE)>1.2,\"2*、\",\"\")","v":{"$error":"#REF!"}},{"$f":"IF(D18/VLOOKUP(B3,INDIRECT(B12&\"!A:W\"),8,FALSE)>1.2,\"3*、\",\"\")","v":{"$error":"#REF!"}},{"$f":"IF(E18/VLOOKUP(B3,INDIRECT(B12&\"!A:W\"),9,FALSE)>1.2,\"4*、\",\"\")","v":{"$error":"#REF!"}},{"$f":"IF(F18/VLOOKUP(B3,INDIRECT(B12&\"!A:W\"),10,FALSE)>1.2,\"5*、\",\"\")","v":{"$error":"#REF!"}},{"$f":"IF(G18/VLOOKUP(B3,INDIRECT(B12&\"!A:W\"),11,FALSE)>1.2,\"6*、\",\"\")","v":{"$error":"#REF!"}},{"$f":"IF(B19&C19&D19&E19&F19&G19=\"\",\"\",\"については良好です。\")","v":{"$error":"#REF!"}}]
[null,{"$f":"IF(B18/VLOOKUP(B3,INDIRECT(B12&\"!A:W\"),6,FALSE)<0.8,\"1*、\",\"\")","v":{"$error":"#REF!"}},{"$f":"IF(C18/VLOOKUP(B3,INDIRECT(B12&\"!A:W\"),7,FALSE)<0.8,\"2*、\",\"\")","v":{"$error":"#REF!"}},{"$f":"IF(D18/VLOOKUP(B3,INDIRECT(B12&\"!A:W\"),8,FALSE)<0.8,\"3*、\",\"\")","v":{"$error":"#REF!"}},{"$f":"IF(E18/VLOOKUP(B3,INDIRECT(B12&\"!A:W\"),9,FALSE)<0.8,\"4*、\",\"\")","v":{"$error":"#REF!"}},{"$f":"IF(F18/VLOOKUP(B3,INDIRECT(B12&\"!A:W\"),10,FALSE)<0.8,\"5*、\",\"\")","v":{"$error":"#REF!"}},{"$f":"IF(G18/VLOOKUP(B3,INDIRECT(B12&\"!A:W\"),11,FALSE)<0.8,\"6*、\",\"\")","v":{"$error":"#REF!"}},{"$f":"IF(B20&C20&D20&E20&F20&G20=\"\",\"\",\"については改善が必要です。\")","v":{"$error":"#REF!"}}]
[null,{"$f":"IFERROR(A19&B19&C19&D19&E19&F19&G19&H19&B20&C20&D20&E20&F20&G20&H20&IF(A19=\"\",\"\",A12&\"平均値に対して\"),\"\")","v":""}]
["実施状況","3_製品含有化学物質管理の遂行","4_製品含有化学物質管理業務運営","5_化学物質情報・データ管理及び適合確認業務運営","6_人的資源および文書・情報の管理"]
[null,{"$f":"VLOOKUP(B3,INDIRECT(B11&\"!A3:W300\"),20,FALSE)","v":{"$error":"#REF!"}},{"$f":"VLOOKUP(B3,INDIRECT(B11&\"!A3:W300\"),21,FALSE)","v":{"$error":"#REF!"}},{"$f":"VLOOKUP(B3,INDIRECT(B11&\"!A3:W300\"),22,FALSE)","v":{"$error":"#REF!"}},{"$f":"VLOOKUP(B3,INDIRECT(B11&\"!A3:W300\"),23,FALSE)","v":{"$error":"#REF!"}}]
[{"$f":"IF(B24&C24&D24&E24&B25&C25&D25&E25=\"\",\"\",\"実施レベル\")","v":{"$error":"#REF!"}},{"$f":"IF(B23/VLOOKUP(B3,INDIRECT(B12&\"!A:W\"),20,FALSE)>1.2,\"3*、\",\"\")","v":{"$error":"#REF!"}},{"$f":"IF(C23/VLOOKUP(B3,INDIRECT(B12&\"!A:W\"),21,FALSE)>1.2,\"4*、\",\"\")","v":{"$error":"#REF!"}},{"$f":"IF(D23/VLOOKUP(B3,INDIRECT(B12&\"!A:W\"),22,FALSE)>1.2,\"5*、\",\"\")","v":{"$error":"#REF!"}},{"$f":"IF(E23/VLOOKUP(B3,INDIRECT(B12&\"!A:W\"),23,FALSE)>1.2,\"6*、\",\"\")","v":{"$error":"#REF!"}},{"$f":"IF(B24&C24&D24&E24=\"\",\"\",\"については良好です。\")","v":{"$error":"#REF!"}}]
[null,{"$f":"IF(B23/VLOOKUP(B3,INDIRECT(B12&\"!A:W\"),20,FALSE)<0.8,\"3*、\",\"\")","v":{"$error":"#REF!"}},{"$f":"IF(C23/VLOOKUP(B3,INDIRECT(B12&\"!A:W\"),21,FALSE)<0.8,\"4*、\",\"\")","v":{"$error":"#REF!"}},{"$f":"IF(D23/VLOOKUP(B3,INDIRECT(B12&\"!A:W\"),22,FALSE)<0.8,\"5*、\",\"\")","v":{"$error":"#REF!"}},{"$f":"IF(E23/VLOOKUP(B3,INDIRECT(B12&\"!A:W\"),23,FALSE)<0.8,\"6*、\",\"\")","v":{"$error":"#REF!"}},{"$f":"IF(B25&C25&D25&E25=\"\",\"\",\"については改善が必要です。\")","v":{"$error":"#REF!"}}]
[null,{"$f":"IFERROR(A24&B24&C24&D24&E24&F24&B25&C25&D25&E25&F25&IF(A24=\"\",\"\",A12&\"平均値に対して\"),\"\")","v":""}]

{"sheet":"前年比較","index":5,"n_rows":10,"n_cols":13,"rows_kept":10,"cut":false,"hidden":true,"merged":[[0,2,0,3],[0,4,0,5],[0,6,0,7]]}
[null,null,{"$f":"'年度指定&ファイル取り込み'!B4 & \"年度\"","v":"年度"},null,{"$f":"'年度指定&ファイル取り込み'!B4-1 & \"年度\"","v":"-1年度"},null,"差分"]
[null,"company code","X","Y","X","Y","X","Y","X","Y"]
[null,{"$f":"ＦＢ!C4","v":0},{"$f":"ＦＢ!G39","v":{"$error":"#REF!"}},{"$f":"ＦＢ!H39","v":{"$error":"#REF!"}},{"$f":"ＦＢ!G34","v":{"$error":"#REF!"}},{"$f":"ＦＢ!H34","v":{"$error":"#REF!"}},{"$f":"C3-E3","v":{"$error":"#REF!"}},{"$f":"D3-F3","v":{"$error":"#REF!"}},{"$f":"IF(G3>0,\"a\",IF(G3=0,\"b\",\"c\"))","v":{"$error":"#REF!"}},{"$f":"IF(H3>0,\"a\",IF(H3=0,\"b\",\"c\"))","v":{"$error":"#REF!"}}]
[null,null,null,null,null,null,null,null,null,null,"+","a","仕組み構築レベルに昨年より改善が見られます。引き続き維持改善をお願いします。"]
[null,null,"コメント",null,null,null,null,null,null,null,0,"b","仕組み構築レベルには昨年から変化は見られません。改善活動を意識してください。"]
[null,null,{"$f":"IFERROR(VLOOKUP(I3,L4:M6,2,FALSE),\"\")","v":""},null,null,null,null,null,null,null,"-","c","仕組み構築レベルで昨年より悪化が見られます。悪化の原因を確認して対策を検討して下さい。"]
[null,null,{"$f":"IFERROR(VLOOKUP(J3,L8:M10,2,FALSE),\"\")","v":""}]
[null,null,null,null,null,null,null,null,null,null,"+","a","実施レベルに昨年より改善が見られます。引き続き維持改善をお願いします。"]
[null,null,null,null,null,null,null,null,null,null,0,"b","実施レベルには昨年から変化は見られません。改善活動を意識してください。"]
[null,null,null,null,null,null,null,null,null,null,"-","c","実施レベルで昨年より悪化が見られます。悪化の原因を確認して対策を検討してください。"]

{"sheet":"database","index":6,"n_rows":2,"n_cols":30,"rows_kept":2,"cut":false,"hidden":false,"merged":[[0,5,1,5],[0,0,1,0],[0,1,1,1],[0,2,1,2],[0,3,1,3],[0,4,1,4]]}
["company code","company name","有無\nX","管理の有無","実施状況\nY","実施状況","有無X",null,null,null,null,null,"管理の有無",null,null,null,null,null,"実施状況Y",null,null,null,null,null,"実施状況"]
[null,null,null,null,null,null,"1_組織の状態とマネジメントシステム","2_基本方針・管理体制","3_製品含有化学物質管理の遂行","4_製品含有化学物質管理業務運営","5_化学物質情報・データ管理及び適合確認業務運営","6_人的資源および文書・情報の管理","1_組織の状態とマネジメントシステム","2_基本方針・管理体制","3_製品含有化学物質管理の遂行","4_製品含有化学物質管理業務運営","5_化学物質情報・データ管理及び適合確認業務運営","6_人的資源および文書・情報の管理","1_組織の状態とマネジメントシステム","2_基本方針・管理体制","3_製品含有化学物質管理の遂行","4_製品含有化学物質管理業務運営","5_化学物質情報・データ管理及び適合確認業務運営","6_人的資源および文書・情報の管理","1_組織の状態とマネジメントシステム","2_基本方針・管理体制","3_製品含有化学物質管理の遂行","4_製品含有化学物質管理業務運営","5_化学物質情報・データ管理及び適合確認業務運営","6_人的資源および文書・情報の管理"]

{"sheet":"B設問結果","index":7,"n_rows":2,"n_cols":28,"rows_kept":2,"cut":false,"hidden":false,"merged":[]}
[]
["仕入先コード","仕入先名称","C1","C2","C3","C4","C5","C6","C7","C8","C9","C10","C11","C12","C13","C1具体例","C2具体例","C3具体例","C4具体例","C5具体例","C6具体例","C7具体例","C8具体例","C9具体例","C10具体例","C11具体例","C12具体例","C13具体例"]

{"sheet":"回答結果一覧","index":8,"n_rows":60,"n_cols":8,"rows_kept":60,"cut":false,"hidden":false,"merged":[[2,0,4,1],[2,2,4,3],[2,4,4,5],[2,6,3,7],[58,1,59,1],[58,2,58,5],[59,2,59,5],[58,6,58,7],[59,6,59,7]]}
[null,null,null,null,null,"会社コード"]
[null,null,null,null,null,"会社名"]
["大区分",null,"中区分",null,"小区分",null,"結果"]
[]
[null,null,null,null,null,null,"有無","実施状況"]
[1,"組織の状態とマネジメントシステム",1.1000000000000001,"組織の状態","1.1.1","組織及びその状況の理解の有無と実態"]
[]
[]
[]
[]
[2,"基本方針・管理体制",2.1,"製品含有化学物質に関する基本方針","2.1.1","製品含有化学物質管理に関する方針の有無とその展開状況"]
[]
[null,null,2.2000000000000002,"製品含有化学物質管理体制","2.2.1","組織における製品含有化学物質管理体制の確立とその実態"]
[null,null,2.2999999999999998,"子会社、海外拠点・子会社に対するガバナンス","2.3.1","子会社、海外子会社に対するガバナンス及び管理体制の確立とその実態"]
[]
[3,"製品含有化学物質管理の遂行",3.1,"製品含有化学物質管理基準","3.1.1","製品含有化学物質基準の有無と基準に基づく業務遂行状況"]
[null,null,3.2,"確実な製品含有化学物質管理業務遂行の為の役割分担及び業務規定","3.2.1","製品含有化学物質管理業務遂行の為の役割分担・業務規定の明確化とその実態"]
[]
[null,null,3.3,"目標及び実施計画","3.3.1","目標および目標達成のための実施計画の有無と計画に基づく業務遂行状況"]
[null,null,3.4,"顧客の製品含有化学物質管理に関する方針","3.4.1","自社の窓口部署、担当者情報の顧客への伝達の状況"]
[null,null,null,null,"3.4.2","自社の窓口部署、担当者情報の維持管理とその顧客への伝達の状況"]
[]
[4,"製品含有化学物質管理業務運営",4.0999999999999996,"設計・開発における製品含有化学物質管理","4.1.1","業務管理規定の有無と規定に基づく業務遂行・管理状況"]
[null,null,4.2,"部品・材料の購入、受け入れ時における製品含有化学物質管理","4.2.1","製品含有化学物質データの仕入先からの入手・確認に関する規定の有無と規定に基づく業務遂行状況"]
[null,null,null,null,"4.2.2","初品/日常受け入れ時における製品含有化学物質管理に関する規定の有無との規定に基づく業務遂行状況"]
[null,null,4.3,"自社内の製造工程における製品含有化学物質管理","4.3.1","製造工程における管理基準に関する管理規定の有無と規定に基づく業務遂行状況"]
[null,null,null,null,"4.3.2","変換工程を伴う製品に関する管理規定の有無と規定に基づく業務遂行状況"]
[null,null,null,null,"4.3.3","トレーサビリティに関する業務管理規定の有無と規定に基づく業務遂行状況"]
[null,null,null,null,"4.3.4","工程・材料変更時の管理基準･規定の有無と規定に基づく業務遂行状況"]
[null,null,4.4000000000000004,"自社内の出荷工程における製品含有化学物質管理","4.4.1","出荷工程における業務手順・規定の有無と規定に基づく業務遂行状況"]
[]
[]
[null,null,4.5,"仕入れ先管理","4.5.1","仕入先に対する製品含有化学物質の管理要求事項の提示の有無と実態"]
[null,null,null,null,"4.5.2","仕入先における製品含有化学物質管理体制の確認に関する規定の有無と規定に基づく業務遂行状況"]
[null,null,4.5999999999999996,"その他自社内の各工程の製品含有化学物質管理における留意事項","4.6.1","誤使用及び汚染防止に対する対応策の有無と実態"]
[null,null,null,null,"4.6.2","識別及びトレーサビリティに関わるルールの有無と実態"]
[]
[]
[]
[5,"化学物質情報・データ管理及び適合確認業務運営",5.0999999999999996,"全体運用","5.1.1","製品含有化学物資管理に関わるデータ管理及び適合確認業務全体に関わる運用規定、マニュアルの有無と規定類に基づく業務遂行状況"]
[null,null,5.2,"データ入手と入手データの確認","5.2.1","仕入れ先とのデータ授受（提出依頼、入手）に関するルールの有無とルールに基づく業務遂行状況"]
[null,null,null,null,"5.2.2","受領したデータに対する適合チェックルールの有無とルールに基づく業務遂行状況"]
[]
[null,null,5.3,"データ作成","5.3.1","顧客に提出する自社製品のデータ作成ルール（作成基準、マニュアル）の有無とルールに基づくデータ作成の状況"]
[null,null,null,null,"5.3.2","作成データにおける、自社製造工程内での変換工程の反映の有無とデータ作成状況"]
[null,null,5.4,"データ提出","5.4.1","顧客に対するデータ提出ルールの有無とルールに基づくデータ提出の状況"]
[null,null,null,null,"5.4.2","データ提出期限を守る仕組みの有無と提出期限内提出の状況"]
[null,null,null,null,"5.4.3","提出データが納入先(顧客)にてReject（拒否判定）された場合の対応に関する手順の明確化の有無と実施状況"]
[null,null,5.5,"データ保管","5.5.1","入手したデータの保管ルールの有無とルールに基づく実施状況"]
[null,null,null,null,"5.5.2","納入先（顧客）へ提出したデータの保管ルールの有無とルールに基づく実施状況"]
[null,null,5.6,"データ更新","5.6.1","管理基準（法規、顧客要求）変更時のデータ更新（作成・提出・保管）に関するルールの有無とルールに基づく実施状況"]
[6,"人的資源および文書・情報の管理",6.1,"教育・人材育成","6.1.1","製品含有化学物質管理業務の持続性維持のための仕組み（能力要件、伝承）の有無と実態"]
[]
[null,null,6.2,"文書（情報、記録）の管理","6.2.1","記録管理に関する規定（手順書、マニュアル）の有無と管理の実態"]
[null,null,6.3,"実施状況の評価及び改善","6.3.1","実施状況の評価及び改善をする仕組みの有無と実態"]
[]
[]
[]
[null,"自由意見欄","お取引先様と弊社での化学物質管理全体を通し、要望や相談したい事がございましたら、ご入力ください。\n※入力内容から必要と判断しました場合、弊社から貴社にコンタクトさせていただきます。"]
[null,null,"本JAMA・JAPIA製品含有化学物質管理ガイドライン、またはチェックシートに関しまして、要望やご意見等がございましたら、ご入力下さい。"]

{"sheet":"FB用database(非表示)","index":9,"n_rows":4,"n_cols":30,"rows_kept":4,"cut":false,"hidden":true,"merged":[]}
["100100","AAA",100,97,90.309278350515498,87.6,100,100,100,91.6666666666667,100,100,3,7,15,33,33,6,100,88.571428571428598,92,81.6666666666667,90.909090909090907,86.6666666666667,3,6.2,13.8,29.4,30,5.2]
["100100","AAA_重複",100,97,90.309278350515498,87.6,100,100,100,91.6666666666667,100,100,3,7,15,33,33,6,100,88.571428571428598,92,81.6666666666667,90.909090909090907,86.6666666666667,3,6.2,13.8,29.4,30,5.2]
["100200","BBB",100,89,20,17.8,100,71.428571428571402,100,83.3333333333333,90.909090909090907,100,3,5,15,30,30,6,20,14.285714285714301,20,16.6666666666667,18.181818181818201,20,0.6,1,3,6,6,1.2]
["100300","CCC",96.9072164948454,94,63.298969072165001,61.4,100,100,100,83.3333333333333,100,100,3,7,15,30,33,6,20,77.142857142857196,64,55,65.454545454545496,73.3333333333333,0.6,5.4,9.6,19.8,21.6,4.4000000000000004]